Cogmind - Beta 14 @@@ ROGUE MODE // 2024.10.01 @ 13:48:49 Player: OctagonalPrism Result: Destroyed by Enhanced Grunt with Neutron Cannon Performance ------------- Evolutions (4) 2000 Regions Visited (14) 2800 Robots Destroyed (169) 845 Value Destroyed (6589) 6589 Prototype IDs (239) 4780 Alien Tech Used (0) 0 Bonus (5716) 5716 TOTAL SCORE: 22730 Bonus ------- High Alert Combat Kills 1370 Follower Combat Kills 95 Entered Garrisons 200 Used RIF Installer 500 Aligned with FarCom 300 Met Data Miner 300 Used Data Conduit 3000 Friendly Fire -49 Cogmind --------- Core Integrity 0/850 Matter 290/300 Energy 84/100 System Corruption 0% Temperature Cool (0) Movement Core (50) Location -6/Data Miner Parts ------- > --- POWER (1) -------- (None) > --- PROPULSION (3) --- (None) > --- UTILITY (8) ------ Relay Coupler [NC] (10) Relay Coupler [Grunt] (22) > --- WEAPON (3) ------- Remote Datajack > --- INVENTORY (5) ---- High-capacity Battery (250) High-powered Field Laser High-powered Field Laser Heavy Plasma Cannon Peak State ------------ > --- POWER ------------ Improved Deuterium Engine > --- PROPULSION ------- Light Treads Light Treads > --- UTILITY ---------- Improved Heat Sink Improved Heat Sink Medium Storage Unit Modified TNC Core Analyzer Core Analyzer Armor Integrity Analyzer Hardened Medium Armor Plating > --- WEAPON ----------- Long-range Proton Cannon Long-range Proton Cannon > --- INVENTORY -------- High-capacity Battery Structural Scanner Point Defense System Relay Coupler [NC] Relay Coupler [Grunt] Shotgun Rocket Launcher Spear [Rating: 48] Favorites ----------- Power Improved Ion Engine Engine Improved Ion Engine Power Core Light Nuclear Core Propulsion Light Treads Treads Light Treads Leg Flexi-carbon Leg Wheel Wheel Utility Improved Heat Sink Device Improved Heat Sink Storage Medium Storage Unit Processor Core Analyzer Hackware Relay Coupler [NC] Protection Hardened Light Armor Plating Weapon Particle Gun Energy Gun Particle Gun Energy Cannon Long-range Proton Cannon Ballistic Gun Precision Assault Rifle Launcher Mini Grenade Launcher Special Weapon Remote Datajack Impact Weapon Flail Piercing Weapon Spear Build | -11 -10 -10 -9 -9 -9 -8 -8 -7 -7 -7 -6 -6 -6 -6 ------- Run | Yrd Mat Min Mat Min Exi Min Mat Fac Gar Fac Fac Low Low Dat Slots Evolved 8 | . . . 2 . . . 2 2 . . 2 . . . Power . | . . . . . . . . . . . . . . . Propulsion 1 | . . . . . . . . . . . 1 . . . Utility 6 | . . . 2 . . . 2 2 . . . . . . Weapon 1 | . . . . . . . . . . . 1 . . . Parts Attached 180 | 7 . 1 22 . . . 39 4 43 36 11 11 5 1 Power 14 | 1 . . 2 . . . 3 . 3 3 . . 2 . Engine 11 | 1 . . 2 . . . 1 . 2 3 . . 2 . Core 3 | . . . . . . . 2 . 1 . . . . . Reactor . | . . . . . . . . . . . . . . . Propulsion 20 | 2 . . 3 . . . 5 . 2 5 1 . 2 . Treads 18 | 2 . . 2 . . . 5 . 2 5 1 . 1 . Leg 1 | . . . . . . . . . . . . . 1 . Wheel 1 | . . . 1 . . . . . . . . . . . Hover . | . . . . . . . . . . . . . . . Flight . | . . . . . . . . . . . . . . . Utility 61 | 2 . . 8 . . . 12 4 12 13 4 6 . . Device 29 | 1 . . 2 . . . 6 2 5 9 1 3 . . Storage 2 | 1 . . 1 . . . . . . . . . . . Processor 6 | . . . 1 . . . 1 1 2 . 1 . . . Hackware 2 | . . . . . . . . . . 1 . 1 . . Protection 22 | . . . 4 . . . 5 1 5 3 2 2 . . Artifact . | . . . . . . . . . . . . . . . Weapon 85 | 2 . 1 9 . . . 19 . 26 15 6 5 1 1 Energy Gun 36 | 2 . 1 6 . . . 13 . 8 3 1 1 1 . Energy Cannon 5 | . . . . . . . . . 4 . . 1 . . Ballistic Gun 13 | . . . . . . . . . 5 5 3 . . . Ballistic Cannon . | . . . . . . . . . . . . . . . Launcher 8 | . . . 3 . . . 1 . 4 . . . . . Special Weapon 6 | . . . . . . . . . . 3 1 1 . 1 Impact Weapon 2 | . . . . . . . 2 . . . . . . . Slashing Weapon . | . . . . . . . . . . . . . . . Piercing Weapon 15 | . . . . . . . 3 . 5 4 1 2 . . Special Melee Weapon . | . . . . . . . . . . . . . . . Unidentified Prototypes 4 | . . . . . . . 2 . . 1 1 . . . Corrupted Parts 1 | . . . . . . . . . 1 . . . . . System Corruption 3 | . . . . . . . . . 3 . . . . . Parts Lost 53 | . . . 5 . . . 2 1 19 9 1 12 1 3 Power 6 | . . . 1 . . . 1 . 3 . . . . 1 Propulsion 11 | . . . . . . . . . 3 3 . 3 1 1 Utility 23 | . . . 3 . . . 1 1 7 4 . 7 . . Weapon 13 | . . . 1 . . . . . 6 2 1 2 . 1 Highest Loss Streak 7 | . . . 3 . . . 2 1 5 2 1 7 1 3 To Critical Strikes . | . . . . . . . . . . . . . . . Average Slot Usage (%) 92 | . 100 100 97 100 100 100 98 97 89 95 98 87 44 40 Engine 6 | . 14 14 10 11 11 11 3 7 5 7 6 5 5 4 Core 1 | . . . . . . . 5 . 1 . . . . . Treads 14 | . 28 28 18 11 11 11 17 15 11 12 19 11 . . Device 16 | . 14 14 18 11 11 11 16 23 19 19 20 13 . . Storage 8 | . 14 14 11 11 11 11 9 7 7 7 6 5 . . Processor 11 | . . . 1 . . . 9 12 21 22 13 12 . . Hackware 2 | . . . . . . . . . . 5 6 6 13 13 Protection 8 | . . . 11 22 22 22 17 15 5 4 6 10 . . Energy Gun 12 | . 28 28 21 22 22 22 17 15 8 . . 3 12 10 Ballistic Gun 3 | . . . . . . . . . 1 7 13 11 . . Piercing Weapon 1 | . . . . . . . . . 1 3 3 2 6 6 Peak Build Rating 48 | 9 9 10 17 16 16 16 36 39 48 48 47 46 29 29 Average Rating 30 | 5 9 9 14 16 16 16 29 37 40 40 44 42 26 24 On Entrance 22 | . 9 9 10 16 16 16 16 34 37 45 39 46 18 29 Naked Turns . | . . . . . . . . . . . . . . . Heaviest Build 53 | 13 13 15 34 34 34 34 44 36 53 53 51 52 25 19 Greatest Support 60 | 40 40 40 40 10 10 10 42 42 42 48 60 60 20 20 Greatest Overweight (x) 8 | . . . 3 3 3 3 3 . 2 2 1 2 8 3 Average Overweight (x) . | . . . . 3 3 3 . . . . . . . . Largest Inventory Capacity 10 | 8 8 8 10 10 10 10 10 10 10 10 10 10 5 5 Average Capacity 9 | 6 8 8 8 10 10 10 10 10 10 10 10 9 5 5 Most Carried 10 | 3 6 7 8 7 9 9 10 10 10 10 10 10 5 5 Average Carried 8 | 1 4 6 6 7 7 9 9 9 8 9 9 9 3 3 Final Capacity 10 | 8 8 8 10 10 10 10 10 10 10 10 10 5 5 5 Final Carried 10 | 2 6 7 7 7 9 9 10 10 10 10 10 5 3 4 Class Distribution -------------------- 61% | Mutant 24% | Scavenger-Mutant 6% | Scavenger-Assassin 4% | Scavenger-Gunner Dominant Class ---------------- Mutant | -10/Materials Mutant | -10/Mines Mutant | -9/Materials Mutant | -9/Mines Mutant | -9/Exiles Mutant | -8/Mines Mutant | -8/Materials Skirmisher | -7/Factory Mutant | -7/Garrison Scavenger-Mutant | -7/Factory Scavenger-Mutant | -6/Factory Mutant | -6/Lower Caves Mutant | -6/Lower Caves Mutant | -6/Data Miner Resources | -11 -10 -10 -9 -9 -9 -8 -8 -7 -7 -7 -6 -6 -6 -6 ----------- Run | Yrd Mat Min Mat Min Exi Min Mat Fac Gar Fac Fac Low Low Dat Matter Collected 3184 | 270 82 78 295 . . . 405 . 606 807 170 269 202 . Remotely . | . . . . . . . . . . . . . . . Salvage Created 5888 | 125 101 145 1148 127 . . 890 . 1435 1253 267 275 122 . Parts 334 | 7 8 19 69 8 . . 59 . 73 62 7 16 6 . Haulers Intercepted 3 | . 1 . 1 . . . 1 . . . . . . . Recyclers Shooed 1 | . . 1 . . . . . . . . . . . . Parts Field Recycled . | . . . . . . . . . . . . . . . Retrieved Matter . | . . . . . . . . . . . . . . . Parts Self-Destructed 21 | . . . . . . . . . . . . 16 5 . Prevented . | . . . . . . . . . . . . . . . Kills | -11 -10 -10 -9 -9 -9 -8 -8 -7 -7 -7 -6 -6 -6 -6 ------- Run | Yrd Mat Min Mat Min Exi Min Mat Fac Gar Fac Fac Low Low Dat Combat Hostiles Destroyed 143 | . 3 8 36 . . . 24 . 39 21 5 5 2 . Melee 5 | . . . . . . . . . . 5 . . . . Guns 107 | . 3 8 23 . . . 19 . 28 15 4 5 2 . Cannons 2 | . . . . . . . . . 2 . . . . . AOE 26 | . . . 13 . . . 4 . 8 . 1 . . . Classes Destroyed 16 | 2 2 1 6 . . . 1 . 3 . . 1 . . Worker 5 | . . 1 2 1 . . . . . 1 . . . . Tunneler 4 | 2 . . . 1 . . 1 . . . . . . . Hauler 3 | . 1 . 1 . . . 1 . . . . . . . Recycler 5 | 1 . . 1 1 . . . . . 2 . . . . Mechanic 2 | . . . 2 . . . . . . . . . . . Operator 2 | . . . . . . . 1 . . 1 . . . . Watcher 5 | . . . 2 . . . 3 . . . . . . . Swarmer 53 | . 3 8 17 . . . 11 . 12 2 . . . . Cutter 3 | . . . . . . . . . 3 . . . . . Grunt 51 | . . . 10 . . . 8 . 16 12 3 2 . . Brawler 5 | . . . 2 . . . . . . 2 1 . . . Duelist 1 | . . . 1 . . . . . . . . . . . Sentry 20 | . . . 6 . . . 5 . 5 3 1 . . . Specialist 2 | . . . . . . . . . 2 . . . . . Hunter 4 | . . . . . . . . . . . . 2 2 . Programmer 4 | . . . . . . . . . 1 2 . 1 . . Best Kill Streak 10 | 3 3 3 10 2 . . 4 . 4 8 4 4 1 . Combat Bots Only 8 | . 3 3 8 . . . 4 . 4 7 4 4 1 . Max Kills in Single Turn 4 | 1 1 2 4 1 . . 2 . 2 1 1 1 1 . Gunslinging 1 | . . 1 . . . . . . 1 . . . . . Exploded 3 | . . . 3 . . . 2 . 2 . 1 . . . Melee 1 | . . . . . . . . . . 1 . . . . Uniques/NPCs Destroyed . | . . . . . . . . . . . . . . . Combat | -11 -10 -10 -9 -9 -9 -8 -8 -7 -7 -7 -6 -6 -6 -6 -------- Run | Yrd Mat Min Mat Min Exi Min Mat Fac Gar Fac Fac Low Low Dat Hostile Shots Fired 1065 | . 26 33 133 . . . 103 13 388 147 77 108 28 9 Missed 358 | . 7 5 46 . . . 25 6 153 47 26 34 7 2 Damage Taken 9727 | . 153 223 781 . . . 1022 101 2640 1433 645 2087 319 323 Core 1848 | . 23 64 111 . . . 118 . 400 252 40 587 101 152 Absorbed by Shields 606 | . . . 191 . . . 8 . 196 76 87 48 . . Redirected to Shielding 108 | . . . . . . . . . . . . 108 . . Ignored by Resistances 70 | . . . . . . . 12 . 58 . . . . . Regen/Repaired (Parts) 244 | . . . 79 . . . 165 . . . . . . . Core Remaining (%) 64 | 100 . 65 . . . 72 78 . . 6 . . . . Volleys Fired 447 | 8 15 24 88 3 . . 82 1 109 65 17 30 5 . Largest 3 | 2 2 2 2 2 . . 2 2 2 2 3 3 2 . Hottest 162 | 80 80 105 130 130 . . 130 116 162 104 71 133 140 . Shots Fired 855 | 16 30 48 165 6 . . 160 2 198 116 37 67 10 . Gun 773 | 16 30 48 156 6 . . 157 2 164 97 34 53 10 . Cannon 43 | . . . . . . . . . 21 9 . 13 . . Launcher 25 | . . . 9 . . . 3 . 13 . . . . . Special 14 | . . . . . . . . . . 10 3 1 . . Kinetic 173 | . . . . . . . . . 15 81 34 43 . . Thermal 597 | 16 30 48 156 6 . . 157 2 149 . . 23 10 . Explosive 25 | . . . 9 . . . 3 . 13 . . . . . Electromagnetic 46 | . . . . . . . . . 21 25 . . . . Robot Hit Streak 29 | 4 6 4 12 13 . . 11 1 14 17 29 25 8 . Robot Miss Streak 9 | 3 3 9 5 1 . . 7 1 2 5 2 2 1 . Penetration Max . | . . . . . . . . . . . . . . . Secondary Targets 13 | . . 1 3 . . . 1 . 5 1 2 . . . Max Gunslinging Chain 1 | . . 1 1 . . . 1 . 1 1 1 . . . Shots Hit Robots 583 | 7 17 20 104 4 . . 100 1 124 112 32 52 9 1 Core Hits 315 | 4 6 9 59 3 . . 49 1 85 67 14 14 4 . Critical Kills 2 | . . . . . . . . . . 1 . 1 . . Critical Parts Destroyed 1 | . . . . . . . . . . . . 1 . . Critical Strikes 23 | . . . 7 . . . 6 . 6 2 . 2 . . Burn 19 | . . . 7 . . . 6 . 6 . . . . . Destroy 3 | . . . . . . . . . . 1 . 2 . . Impale 1 | . . . . . . . . . . 1 . . . . Melee Attacks 110 | . . . . . . . 11 . 47 34 5 2 . 11 Impact 6 | . . . . . . . 6 . . . . . . . Slashing . | . . . . . . . . . . . . . . . Piercing 104 | . . . . . . . 5 . 47 34 5 2 . 11 Sneak Attacks 4 | . . . . . . . . . . 1 . 2 . 1 Combat Hostiles . | . . . . . . . . . . . . . . . Follow-up Attacks . | . . . . . . . . . . . . . . . Damage Inflicted 13713 | 78 185 237 2729 66 . . 2012 17 3741 2357 864 1162 201 64 Guns 8551 | 78 185 237 1420 66 . . 1693 17 1866 1498 541 749 201 . Cannons 1011 | . . . . . . . . . 465 264 . 282 . . Explosions 3212 | . . . 1309 . . . 196 . 1410 . 297 . . . Melee 939 | . . . . . . . 123 . . 595 26 131 . 64 Ramming . | . . . . . . . . . . . . . . . Kinetic 2622 | . . . . . . . . . 206 1267 541 608 . . Thermal 6344 | 78 185 237 1487 66 . . 1693 17 1660 . 297 423 201 . Explosive 2848 | . . . 1242 . . . 196 . 1410 . . . . . Electromagnetic 960 | . . . . . . . . . 465 495 . . . . Impact 123 | . . . . . . . 123 . . . . . . . Slashing . | . . . . . . . . . . . . . . . Piercing 816 | . . . . . . . . . . 595 26 131 . 64 Highest Corruption 9 | . . . . . . . . . 6 9 6 6 . . Average Corruption 5 | . . . . . . . . . 4 6 4 3 . . Corruption Purged 9 | . . . . . . . . . . 3 . 6 . . Corruption Blocked . | . . . . . . . . . . . . . . . Effects 109 | . . . . . . . . . 38 55 13 3 . . Message Errors 34 | . . . . . . . . . 9 19 6 . . . Matter Fused 22 | . . . . . . . . . 9 10 2 1 . . Heat Flow Errors 9 | . . . . . . . . . 6 1 2 . . . Energy Discharges 11 | . . . . . . . . . 4 5 1 1 . . Parts Rejected 3 | . . . . . . . . . 1 2 . . . . Parts Fused 1 | . . . . . . . . . . 1 . . . . Data Loss (minor) 14 | . . . . . . . . . 3 10 1 . . . Data Loss (major) 3 | . . . . . . . . . 2 1 . . . . Misfires 7 | . . . . . . . . . 2 3 1 1 . . Alerts 3 | . . . . . . . . . 2 1 . . . . Weapon Failures 2 | . . . . . . . . . . 2 . . . . Overload Shots . | . . . . . . . . . . . . . . . Overflow Damage 290 | . . . 55 . . . 23 . 55 84 . 69 . 4 Projectiles 23 | . . . . . . . . . . 23 . . . . Explosions 110 | . . . 55 . . . . . 55 . . . . . Melee 157 | . . . . . . . 23 . . 61 . 69 . 4 Knockbacks . | . . . . . . . . . . . . . . . Impact . | . . . . . . . . . . . . . . . Kinetic . | . . . . . . . . . . . . . . . Secondary . | . . . . . . . . . . . . . . . Self-Inflicted Damage 184 | . . . 21 . . . . . 16 . 147 . . . Shots 5 | . . . 2 . . . . . 1 . 2 . . . Rammed . | . . . . . . . . . . . . . . . Targets Rammed . | . . . . . . . . . . . . . . . Kicked . | . . . . . . . . . . . . . . . Crushed . | . . . . . . . . . . . . . . . Highest Temperature 563 | 72 72 180 165 39 . . 452 . 241 139 246 563 171 . Average Temperature 94 | 32 31 68 40 21 . . 137 . 64 47 86 180 75 . Received Heat Transfer 2766 | . . . 209 . . . 519 18 702 579 179 560 . . Effects 16 | . . . . . . . 6 . . . . 10 . . Shutdowns 3 | . . . . . . . 1 . . . . 2 . . Energy Bleed 2 | . . . . . . . 2 . . . . . . . Interference 6 | . . . . . . . 3 . . . . 3 . . Matter Decay 2 | . . . . . . . . . . . . 2 . . Short Circuit 1 | . . . . . . . . . . . . 1 . . Damage (core) 2 | . . . . . . . . . . . . 2 . . Siege Activations . | . . . . . . . . . . . . . . . Robots Corrupted 3 | . . . . . . . 1 . 1 1 . . . . Combat Hostiles 3 | . . . . . . . 1 . 1 1 . . . . Parts Fried 6 | . . . . . . . 2 . 2 2 . . . . Impact Corruptions 1 | . . . . . . . 1 . . . . . . . Robots Melted . | . . . . . . . . . . . . . . . Combat Hostiles . | . . . . . . . . . . . . . . . Parts Melted 40 | . . 1 14 1 . . 11 . 11 . . . 2 . Heat Transferred 14475 | 175 425 536 3920 148 . . 4107 37 3922 . 250 622 333 . Parts Sabotaged . | . . . . . . . . . . . . . . . Parts Stolen . | . . . . . . . . . . . . . . . Parts Stripped . | . . . . . . . . . . . . . . . Power Chain Reactions . | . . . . . . . . . . . . . . . Alert | -11 -10 -10 -9 -9 -9 -8 -8 -7 -7 -7 -6 -6 -6 -6 ------- Run | Yrd Mat Min Mat Min Exi Min Mat Fac Gar Fac Fac Low Low Dat Peak Influence 1852 | 15 130 352 932 378 . . 435 211 1852 1023 457 . . . Initial 972 | . 9 . 59 363 . . . 197 140 972 410 . . . Average 544 | 4 40 181 536 372 . . 111 198 959 827 403 . . . Maximum Alert Level 5 | . . 1 3 1 . . 2 1 5 3 2 . . . Low Security (%) 31 | 100 100 68 12 . . 100 80 90 7 . . . . . Level 1 13 | . . 31 17 100 . . 16 9 7 . 22 . . . Level 2 17 | . . . 39 . . . 3 . 19 7 77 . . . Level 3 24 | . . . 30 . . . . . 13 92 . . . . Level 4 11 | . . . . . . . . . 43 . . . . . Level 5 2 | . . . . . . . . . 8 . . . . . High Security . | . . . . . . . . . . . . . . . Max Security . | . . . . . . . . . . . . . . . Squads Dispatched 15 | . 1 . 4 . . . 1 2 . 6 1 . . . Investigation 5 | . 1 . 2 . . . . 1 . 1 . . . . Extermination 2 | . . . . . . . . . . 2 . . . . Reinforcement 4 | . . . . . . . 1 . . 3 . . . . Assault 3 | . . . 2 . . . . . . . 1 . . . Garrison 1 | . . . . . . . . 1 . . . . . . Intercept . | . . . . . . . . . . . . . . . Searches Triggered . | . . . . . . . . . . . . . . . Construction Impeded . | . . . . . . . . . . . . . . . Haulers Reinforced 1 | . . . . . . . . . . 1 . . . . Active Scanning Responses . | . . . . . . . . . . . . . . . Cargo Convoy Interrupts . | . . . . . . . . . . . . . . . Stealth | -11 -10 -10 -9 -9 -9 -8 -8 -7 -7 -7 -6 -6 -6 -6 --------- Run | Yrd Mat Min Mat Min Exi Min Mat Fac Gar Fac Fac Low Low Dat Distress Signals 15 | . 2 . 4 . . . 3 . . 6 . . . . Communications Jammed . | . . . . . . . . . . . . . . . Distress Signals . | . . . . . . . . . . . . . . . Times Spotted 207 | . 8 12 60 . . . 33 2 39 35 6 6 2 4 Peak Tracking Total 6 | . 4 3 5 . . . 4 2 6 5 4 3 2 4 Tactical Retreats 11 | . 1 . 2 . . . 3 . 3 2 . . . . Traps | -11 -10 -10 -9 -9 -9 -8 -8 -7 -7 -7 -6 -6 -6 -6 ------- Run | Yrd Mat Min Mat Min Exi Min Mat Fac Gar Fac Fac Low Low Dat Traps Triggered 9 | . . . . . . . . . 4 1 4 . . . Indirectly . | . . . . . . . . . . . . . . . Trap Hack Attempts . | . . . . . . . . . . . . . . . Triggered . | . . . . . . . . . . . . . . . Disarmed . | . . . . . . . . . . . . . . . Reprogrammed . | . . . . . . . . . . . . . . . Reused . | . . . . . . . . . . . . . . . Traps Extracted . | . . . . . . . . . . . . . . . Installed . | . . . . . . . . . . . . . . . Triggered 1 | . . . . . . . . . . . . 1 . . Machines | -11 -10 -10 -9 -9 -9 -8 -8 -7 -7 -7 -6 -6 -6 -6 ---------- Run | Yrd Mat Min Mat Min Exi Min Mat Fac Gar Fac Fac Low Low Dat Machines Disabled 18 | . . . 4 . . . 3 . 6 1 4 . . . Max in Single Turn 4 | . . . 1 . . . 1 . 1 1 4 . . . Garrison Access 2 | . . . . . . . . . . 1 1 . . . Garrison Relay 6 | . . . . . . . . . 6 . . . . . Machines Repaired . | . . . . . . . . . . . . . . . Machines Dismantled . | . . . . . . . . . . . . . . . Machines Sabotaged . | . . . . . . . . . . . . . . . Overloaded Fab Kills . | . . . . . . . . . . . . . . . Hacking | -11 -10 -10 -9 -9 -9 -8 -8 -7 -7 -7 -6 -6 -6 -6 --------- Run | Yrd Mat Min Mat Min Exi Min Mat Fac Gar Fac Fac Low Low Dat Machines Accessed 39 | . 5 . 10 1 4 . 6 3 2 4 2 . . 2 Terminals 19 | . 4 . 7 . . . 4 1 2 1 . . . . Fabricators 4 | . . . . . . . . 1 . 2 1 . . . Repair Stations 3 | . . . 2 . . . 1 . . . . . . . Recycling Units 1 | . 1 . . . . . . . . . . . . . Scanalyzers 2 | . . . 1 . . . 1 . . . . . . . Garrison Access 3 | . . . . . . . . 1 . 1 1 . . . Total Hacks 135 | . 20 . 33 1 10 . 34 7 3 5 6 . . 16 Successful 87 | . 10 . 19 1 10 . 25 1 . 1 4 . . 16 Failed 47 | . 10 . 14 . . . 8 6 3 4 2 . . . Catastrophic 3 | . . . . . . . 1 . . 1 1 . . . Database Lockouts 1 | . . . . . . . 1 . . . . . . . Manual 48 | . 10 . 16 . 1 . 16 2 . 1 2 . . . Terminals 72 | . 18 . 24 . . . 24 2 3 1 . . . . Fabricators 10 | . . . . . . . . 2 . 3 5 . . . Repair Stations 14 | . . . 6 . . . 8 . . . . . . . Recycling Units 2 | . 2 . . . . . . . . . . . . . Scanalyzers 5 | . . . 3 . . . 2 . . . . . . . Garrison Access 5 | . . . . . . . . 3 . 1 1 . . . Terminal Hacks 54 | . 7 . 10 1 10 . 10 . . . . . . 16 Record 9 | . . . . . 9 . . . . . . . . . Part Schematic 8 | . . . . . . . . . . . . . . 8 Robot Schematic 5 | . . . . . . . . . . . . . . 5 Robot Analysis 6 | . 2 . 3 . . . 1 . . . . . . . Prototype ID Bank 9 | . 3 . 1 . . . 2 . . . . . . 3 Open Door 1 | . . . . 1 . . . . . . . . . . Terminal Index 1 | . . . . . . . 1 . . . . . . . Alert Level 5 | . . . 3 . . . 2 . . . . . . . Locate Traps 3 | . 2 . 1 . . . . . . . . . . . Hauler Manifests 1 | . . . . . . . 1 . . . . . . . Zone Layout 5 | . . . 2 . . . 3 . . . . . . . Derelict Proto ID Bank 1 | . . . . . 1 . . . . . . . . . Fabricator Hacks 3 | . . . . . . . . . . . 3 . . . Network Status 2 | . . . . . . . . . . . 2 . . . Load Schematic 1 | . . . . . . . . . . . 1 . . . Repair Station Hacks 10 | . . . 3 . . . 7 . . . . . . . Scan Component 6 | . . . 2 . . . 4 . . . . . . . Repair 4 | . . . 1 . . . 3 . . . . . . . Recycling Unit Hacks . | . . . . . . . . . . . . . . . Scanalyzer 4 | . . . 2 . . . 2 . . . . . . . Insert Component 2 | . . . 1 . . . 1 . . . . . . . Analyze 2 | . . . 1 . . . 1 . . . . . . . Garrison Access Hacks 3 | . . . . . . . . 1 . 1 1 . . . Unlock Access 1 | . . . . . . . . 1 . . . . . . Seal Access 2 | . . . . . . . . . . 1 1 . . . Unauthorized Hacks 13 | . 3 . 4 . . . 6 . . . . . . . Terminals 13 | . 3 . 4 . . . 6 . . . . . . . Assimilate 1 | . . . 1 . . . . . . . . . . . Botnet 9 | . 2 . 3 . . . 4 . . . . . . . Disrupt 2 | . 1 . . . . . 1 . . . . . . . Operators 1 | . . . . . . . 1 . . . . . . . Fabricators . | . . . . . . . . . . . . . . . Repair Stations . | . . . . . . . . . . . . . . . Recycling Units . | . . . . . . . . . . . . . . . Scanalyzers . | . . . . . . . . . . . . . . . Garrison Access . | . . . . . . . . . . . . . . . Data Cores Recovered . | . . . . . . . . . . . . . . . Used . | . . . . . . . . . . . . . . . Hacking Detections 26 | . 5 . 9 . . . 3 3 2 3 1 . . . Full Trace Events 5 | . 1 . 2 . . . . 1 . 1 . . . . Feedback Events . | . . . . . . . . . . . . . . . Feedback Blocked . | . . . . . . . . . . . . . . . Robot Schematics Acquired 5 | . . . . . . . . . . . . . . 5 Robots Built . | . . . . . . . . . . . . . . . Authchips . | . . . . . . . . . . . . . . . Time . | . . . . . . . . . . . . . . . Total Robot Build Rating . | . . . . . . . . . . . . . . . Part Schematics Acquired 10 | . . . 1 . . . 1 . . . . . . 8 Parts Built . | . . . . . . . . . . . . . . . Authchips . | . . . . . . . . . . . . . . . Time . | . . . . . . . . . . . . . . . Total Part Build Rating . | . . . . . . . . . . . . . . . Parts Repaired 4 | . . . 1 . . . 3 . . . . . . . Time 132 | . . . 26 . . . 106 . . . . . . . Parts Recycled . | . . . . . . . . . . . . . . . Recycled Matter . | . . . . . . . . . . . . . . . Retrieved Matter . | . . . . . . . . . . . . . . . Retrieved Components . | . . . . . . . . . . . . . . . Parts Scanalyzed 2 | . . . 1 . . . 1 . . . . . . . Part Schematics Acquired 2 | . . . 1 . . . 1 . . . . . . . Parts Damaged . | . . . . . . . . . . . . . . . Bothacking | -11 -10 -10 -9 -9 -9 -8 -8 -7 -7 -7 -6 -6 -6 -6 ------------ Run | Yrd Mat Min Mat Min Exi Min Mat Fac Gar Fac Fac Low Low Dat Used RIF Installer 1 | . . . . . . . . . 1 . . . . . Robots Hacked 7 | . . . . . . . . . . 4 2 1 . . Non-combat 7 | . . . . . . . . . . 4 2 1 . . Combat . | . . . . . . . . . . . . . . . Robot Hacks Applied 9 | . . . . . . . . . . 6 2 1 . . parse_system 1 | . . . . . . . . . . 1 . . . . no_distress 2 | . . . . . . . . . . . 1 1 . . randomize_corridors 1 | . . . . . . . . . . . 1 . . . drop_inventory 1 | . . . . . . . . . . 1 . . . . find_recycling 1 | . . . . . . . . . . 1 . . . . purge_threat 1 | . . . . . . . . . . 1 . . . . find_terminals 1 | . . . . . . . . . . 1 . . . . mark_security 1 | . . . . . . . . . . 1 . . . . Relay Couplers Released 30 | . . . . . . . . . 30 . . . . . Machine Destruction 26 | . . . . . . . . . 26 . . . . . Programmers 4 | . . . . . . . . . 4 . . . . . Attached 2 | . . . . . . . . . . 1 . 1 . . Fabnet Peak Effective % . | . . . . . . . . . . . . . . . Robots Rewired . | . . . . . . . . . . . . . . . Allies Hacked . | . . . . . . . . . . . . . . . Hacks Repelled . | . . . . . . . . . . . . . . . Allies | -11 -10 -10 -9 -9 -9 -8 -8 -7 -7 -7 -6 -6 -6 -6 -------- Run | Yrd Mat Min Mat Min Exi Min Mat Fac Gar Fac Fac Low Low Dat Total Allies 4 | . . 3 1 . . . . . . . . . . . Largest Group 3 | . . 3 1 . . . . . . . . . . . Highest-Rated Group 40 | . . 40 16 . . . . . . . . . . . Highest-Rated Ally 16 | . . 16 16 . . . . . . . . . . . Total Orders . | . . . . . . . . . . . . . . . Ally Attacks 28 | . . 25 3 . . . . . . . . . . . Total Damage 296 | . . 264 32 . . . . . . . . . . . Kills 7 | . . 6 1 . . . . . . . . . . . Allies Corrupted . | . . . . . . . . . . . . . . . Allies Melted . | . . . . . . . . . . . . . . . Intel | -11 -10 -10 -9 -9 -9 -8 -8 -7 -7 -7 -6 -6 -6 -6 ------- Run | Yrd Mat Min Mat Min Exi Min Mat Fac Gar Fac Fac Low Low Dat Robot Analysis Total 151 | . 2 . 3 . . . 1 . . . . . . 145 Derelict Logs Recovered 4 | . . 1 . 1 . . . . . . . 1 1 . Drone Launches . | . . . . . . . . . . . . . . . Drone Recoveries . | . . . . . . . . . . . . . . . Exploration | -11 -10 -10 -9 -9 -9 -8 -8 -7 -7 -7 -6 -6 -6 -6 ------------- Run | Yrd Mat Min Mat Min Exi Min Mat Fac Gar Fac Fac Low Low Dat Turns Passed 11613 | 110 444 606 1186 215 359 25 1980 221 2569 1833 634 730 575 126 Spaces Moved 5178 | 50 246 300 516 161 285 21 849 135 968 745 299 204 314 85 Core 68 | 6 . . . . . . . . . . . 13 39 10 Treads 4234 | 44 246 300 469 . . . 837 135 968 745 299 191 . . Legs 350 | . . . . . . . . . . . . . 275 75 Wheels 526 | . . . 47 161 285 21 12 . . . . . . . Hover . | . . . . . . . . . . . . . . . Flight . | . . . . . . . . . . . . . . . Fastest Speed 50 | 50 160 160 95 125 125 125 125 157 157 160 160 100 100 50 Average Speed 174 | 146 160 160 171 125 125 125 155 157 208 196 166 225 172 113 Slowest Speed 450 | 160 160 160 240 125 125 125 240 157 320 320 240 320 450 200 Overloaded Moves . | . . . . . . . . . . . . . . . Propulsion Burnouts . | . . . . . . . . . . . . . . . Robots Hopped . | . . . . . . . . . . . . . . . Cave-ins Triggered . | . . . . . . . . . . . . . . . Exploration Rate (%) 40 | 3 46 55 53 32 62 17 58 5 80 22 9 40 55 75 Regions Visited 14 Branch Regions 7 Pre-discovered Areas 36 | . . 1 . 1 1 . . . . . . 1 1 31 Known Exits Taken 1 | . . . . . . . . 1 . . . . . . Unknown Exits Taken 12 | 1 1 1 1 1 1 1 1 . . 1 1 1 1 . Scrap Searched 3 | . . 1 . . . . . . . . . 1 1 . Spaces Dug 69 | . . . 12 . . . 5 . 37 7 3 . . 5 Terrain Destroyed 241 | . . . 73 . . . 15 . 86 7 50 5 . 5 Melee 25 | . . . . . . . 5 . 5 7 3 . . 5 Projectile 5 | . . . . . . . . . . . . 5 . . AOE 211 | . . . 73 . . . 10 . 81 . 47 . . . Terrain Rammed . | . . . . . . . . . . . . . . . Walls Destroyed . | . . . . . . . . . . . . . . . Machines Disabled . | . . . . . . . . . . . . . . . Actions | -11 -10 -10 -9 -9 -9 -8 -8 -7 -7 -7 -6 -6 -6 -6 --------- Run | Yrd Mat Min Mat Min Exi Min Mat Fac Gar Fac Fac Low Low Dat Total 6753 | 68 267 378 649 169 288 20 1327 142 1244 948 397 422 335 99 Wait 716 | . 3 52 9 6 . . 315 . 47 46 59 168 11 . Move 5163 | 49 245 299 515 160 284 20 848 134 966 744 298 203 313 85 Hop . | . . . . . . . . . . . . . . . Pick Up 56 | 4 4 1 7 . 3 . 11 1 15 6 3 1 . . Fast Attach 51 | 5 . . 4 . . . 9 1 12 14 2 2 2 . Attach 35 | 2 . . 7 . . . 1 2 11 3 2 4 2 1 Detach 13 | . . . . . . . 1 1 3 2 1 2 1 2 Swap 94 | . . 1 11 . . . 29 1 20 19 7 5 1 . Drop 64 | . . 1 8 . 1 . 20 1 10 15 3 5 . . Fire 447 | 8 15 24 88 3 . . 82 1 109 65 17 30 5 . Melee 110 | . . . . . . . 11 . 47 34 5 2 . 11 Ram . | . . . . . . . . . . . . . . . Kick . | . . . . . . . . . . . . . . . Crush . | . . . . . . . . . . . . . . . Escape Stasis 4 | . . . . . . . . . 4 . . . . . Rewire . | . . . . . . . . . . . . . . . Trap . | . . . . . . . . . . . . . . . Miscellaneous . | . . . . . . . . . . . . . . . Route ------- -11/Scrapyard -10/Materials (discovered 2 exits: *Mat / [*Min]) -10/Mines -9/Materials (discovered 3 exits: *Mat x2 / *Min) -9/Mines (discovered 3 exits: *Mat / *Exi / [*Zio]) -9/Exiles (discovered 2 exits: [*Min x2]) -8/Mines -8/Materials (discovered 3 exits: *Fac x2 / [*Sto]) -7/Factory -7/Garrison (discovered 3 exits: *Fac x3) -7/Factory -6/Factory -6/Lower Caves -6/Lower Caves -6/Data Miner (discovered 1 exit: [*Pro]) History --------- Turn | Location | Event 7 | -11/Scrapyard | Discovered new exit (range 15) 111 | -11/Scrapyard | Entered Materials 268 | -10/Materials | Discovered new exit (range 8) 316 | -10/Materials | Build established: Mutant 475 | -10/Materials | Discovered new exit (range 11) 555 | -10/Materials | Entered Mines 578 | -10/Mines | Met a Derelict bent on vengeance 603 | -10/Mines | Assisted by bots powering up and referring to "LRC-V3" 686 | -10/Mines | Learned location of Zion (-7) 1151 | -10/Mines | Discovered new exit (range 6) 1161 | -10/Mines | Entered Materials 1161 | -9/Materials | Accompanied by 1 ally 1161 | -9/Materials | Evolved 2 slots: Utility x2 1530 | -9/Materials | Destroyed 8 combat bots 1623 | -9/Materials | Repaired Lgt. Armor Plating? 1774 | -9/Materials | Discovered new exit (range 4) 1961 | -9/Materials | First assault squad dispatched 2031 | -9/Materials | Lost 3 parts (1p1u1w) 2109 | -9/Materials | Discovered new exit (range 8) 2273 | -9/Materials | Discovered new exit (range 11) 2347 | -9/Materials | Entered Mines 2348 | -9/Mines | A Derelict revealed a hidden shortcut to a safe place 2399 | -9/Mines | Discovered new exit (range 6) 2435 | -9/Mines | Learned location of Storage (-8) 2496 | -9/Mines | Found the Drone Emporium 2511 | -9/Mines | Learned Materials trap positions 2539 | -9/Mines | Found a damaged Exp. Sensor Array with a note attached 2556 | -9/Mines | Deemed a non-threat by the Exiles lab entrance 2557 | -9/Mines | Discovered new exit (range 5) 2562 | -9/Mines | Entered Exiles 2582 | -9/Exiles | Discovered new exit (range 15) 2596 | -9/Exiles | Met 8R-AWN 2615 | -9/Exiles | Met EX-HEX 2649 | -9/Exiles | Met EX-BIN 2664 | -9/Exiles | Aligned with FarCom system 2665 | -9/Exiles | Given EX-Vault access code 2694 | -9/Exiles | Opened EX-Vault 2702 | -9/Exiles | Found Cloak of Protection 2741 | -9/Exiles | Found Modified TNC 2776 | -9/Exiles | Warned to stay clear of 0b10 Research branches 2841 | -9/Exiles | Met EX-DEC 2910 | -9/Exiles | Discovered new exit (range 10) 2921 | -9/Exiles | Left Exiles lab with Modified TNC 2921 | -9/Exiles | Entered Mines 2935 | -8/Mines | Discovered new exit (range 10) 2946 | -8/Mines | Entered Materials 2946 | -8/Materials | Evolved 2 slots: Utility x2 2947 | -8/Materials | Loaded intel: 19 trap records 3739 | -8/Materials | Repaired Imp. Heat Sink 3774 | -8/Materials | Repaired Particle Gun 3811 | -8/Materials | Repaired Broken Lgt. Treads 3857 | -8/Materials | Discovered new exit (range 3) 4483 | -8/Materials | Discovered new exit (range 13) 4804 | -8/Materials | Central database locked down 4831 | -8/Materials | Discovered new exit (range 11) 4926 | -8/Materials | Entered Factory 4926 | -7/Factory | Evolved 2 slots: Utility x2 5127 | -7/Factory | Identified exit to Garrison 5131 | -7/Factory | Garrison activated, responded to threat 5147 | -7/Factory | Entered Garrison 5281 | -7/Garrison | Triggered checkpoint 5323 | -7/Garrison | Triggered checkpoint 5327 | -7/Garrison | Garrison Relay disabled 5527 | -7/Garrison | Triggered checkpoint 5600 | -7/Garrison | Garrison Relay disabled 5629 | -7/Garrison | Triggered checkpoint 5685 | -7/Garrison | Triggered checkpoint 5815 | -7/Garrison | Triggered checkpoint 5887 | -7/Garrison | Garrison Relay disabled 5947 | -7/Garrison | Discovered new exit (range 8) 6052 | -7/Garrison | Triggered checkpoint 6163 | -7/Garrison | Discovered new exit (range 11) 6243 | -7/Garrison | Lost 3 parts (1p1n1w) 6297 | -7/Garrison | Triggered checkpoint 6375 | -7/Garrison | Garrison Relay disabled 6394 | -7/Garrison | Garrison Relay disabled 6682 | -7/Garrison | Lost 3 parts (1p1u1w) 6918 | -7/Garrison | Build established: Scavenger-Mutant 7147 | -7/Garrison | Discovered new exit (range 12) 7306 | -7/Garrison | Core integrity fell below 50% 7340 | -7/Garrison | Lost 5 parts (1n2u2w) 7359 | -7/Garrison | Triggered checkpoint 7595 | -7/Garrison | Installed Relay Interface Framework 7614 | -7/Garrison | Garrison Relay disabled 7716 | -7/Garrison | Entered Factory 8127 | -7/Factory | Build established: Scavenger-Assassin 8650 | -7/Factory | Core integrity fell below 20% 8687 | -7/Factory | Destroyed 7 combat bots 8943 | -7/Factory | Build established: Scavenger-Mutant 9542 | -7/Factory | Discovered new exit (range 4) 9549 | -7/Factory | Entered another Factory area 9549 | -6/Factory | Evolved 2 slots: Propulsion x1, Weapon x1 9899 | -6/Factory | First assault squad dispatched 10144 | -6/Factory | Discovered new exit (range 5) 10183 | -6/Factory | Entered Lower Caves 10249 | -6/Lower Caves | Encountered a Warlord checkpoint 10437 | -6/Lower Caves | Build established: Scavenger-Gunner 10806 | -6/Lower Caves | Discovered new exit (range 10) 10806 | -6/Lower Caves | Spotted B-75 Beast 10845 | -6/Lower Caves | Lost 3 parts (1n2u) 10850 | -6/Lower Caves | Core integrity fell below 50% 10907 | -6/Lower Caves | Learned location of Extension (-6) 10913 | -6/Lower Caves | Entered another Lower Caves area 10924 | -6/Lower Caves | Lost 7 parts (5u2w) 10983 | -6/Lower Caves | Core integrity fell below 20% 11142 | -6/Lower Caves | Build established: Mutant 11481 | -6/Lower Caves | Discovered new exit (range 7) 11488 | -6/Lower Caves | Entered Data Miner 11488 | -6/Data Miner | Discovered new exit (range 6) 11511 | -6/Data Miner | Met Data Miner 11554 | -6/Data Miner | Received God Mode back door access code from Data Miner 11573 | -6/Data Miner | Interfaced with the Data Conduit 11614 | -6/Data Miner | Destroyed by Enhanced Grunt with Neutron Cannon Last Messages --------------- you see an opportunity, hack it and enter \\HXHW to gain control via the back door I've installed. Now off with you. Sneak attack on Data Miner. Destroyed Lgt. Angular Momentum Engine. Data Miner disappears through a trap door. Interfacing with system... Downloaded 145 analysis records. Downloaded 756 prototype IDs. Downloaded central machine database. Downloaded 31 destinations. Downloaded encryption format records. Connection remotely terminated. [Achievement: Unlimited Data] Lgt. Angular Momentum Engine destroyed. Flexi-carbon Leg destroyed. Spear destroyed. The unstable cave ceiling collapses. Enhanced Grunt crushed by falling debris. The unstable cave ceiling collapses. Map ----- +----------------------------------------------------+ | | | | | | | | | | | | | | | | | | | | | | | | | | | | | | | | | | | | | ????????????????????????????????????????? | | ????????????????????????????????????????? | | ????????????????????????????????????????? | | ????????????#####???????????????????????? | | ???????????####g##???????????????????#### | | ?????#######;#gg ####??????????????### # | | ?????"""""" """" """######????????## # | | ????""""""" " @""""""""# ######## < ## | | ????""""""" " # | | ????"""""" g | | ???""""""" | | ???"""""" | | ???""""""" | | ????"""""" """"""""""""""""# | | ????""""""" """"############### | | ????""""""" """""###?????????????? | | ?????"""""""" "#####???????????????? | | ??????######"## "#???????????????????? | | ???????????#"### "#???????????????????? | | ???????????#"### "#???????????????????? | | ???????????#"?# "#???????????????????? | | ?????????????## "#???????????????????? | | ?????????????# "#???????????????????? | | ?????????????### "#???????????????????? | | ???????????????# "##??????????????????? | | ??????????????## ""#??????????????????? | | ?????????????## ""#??????????????????? | | ??????????##"#"X ""#??????????????????? | | ??????????""""" "####???????????????? | | ??????????""""" X"""""???????????????? | | ??????????##"#"X "##"#???????????????? | | ???????????#?## X""""#???????????????? | +----------------------------------------------------+ Best States ------------- Heat Dissipation 89 Energy Generation 18 Energy Capacity 290 Matter Stores 300 Matter Capacity 300 Sight Range 16 Terrain Scan Range 16 Terrain Scan Density 10 Armor Coverage 825 Resistance: KI 20 Weapon Shielding 66 Evasion (%) 55 Targeting Accuracy 8 Core Analysis 9 Armor Integrity Analysis 30 Recoil Reduction 3 Particle Charging 15 Relay Coupler Types 2 Relay Coupler Value 32 Item Schematics ----------------- Structural Scanner | -9/Materials | Scanalyzed Reactive Plating | -8/Materials | Scanalyzed Combat Drone Bay | -6/Data Miner | Free Lgt. Regenerative Plating | -6/Data Miner | Free Cld. Nuclear Pulse Thruster | -6/Data Miner | Free Prc. Energy Filter | -6/Data Miner | Free Neutron Cannon | -6/Data Miner | Free Impulse Thruster | -6/Data Miner | Free Imp. Force Field | -6/Data Miner | Free Hardcell Cannon | -6/Data Miner | Free Robot Schematics ------------------ S-27 Virus | -6/Data Miner | Free H-66 Slayer | -6/Data Miner | Free X-72 Disruptor | -6/Data Miner | Free H-77 Assassin | -6/Data Miner | Free B-60 Warrior | -6/Data Miner | Free Fabricated ------------ Nothing Alien Tech Used ----------------- None Achievements -------------- Unlimited Data Challenges ------------ None Game ------ Seed ReflectiveNetworkBay Manual? 0 Play Time 01:40:19 Cumulative 133.0 hours Start 2024.10.01 @ 12:07:38 End 2024.10.01 @ 13:48:49 Sessions 1 Manual Loads 0 Difficulty Rogue Special Mode None Game No. 117 Rogue 117 Adventurer 0 Explorer 0 Win Type - Total 1 Types 1/0/0/0/0/0/0/0/0 Lore% 54 Gallery% 59 Achievement% 46 Wizard Run 0 Options --------- Layout 2 ASCII 0 Keyboard 0 Movement Arrows Keybinds 0 Fullscreen 1 Font 16/Terminus Map View 55x47 Zoom Use 0% Tactical HUD 0 Map Filters NONE Filters NONE Steam 1 RUN: 34468f7c-030b-45ec-aa50-355947c1e8d8